Workbook

Sheet Lista de Tabelas

Sheet 1. Histórico de Produção
B2: 1. HISTÓRICO DA PRODUÇÃO NACIONAL
B6: Tabela 1. Histórico de produção de petróleo – óleo e condensado (Mbbl/d)
C8: 12/2023 | D8: 01/2024 | E8: 02/2024 | F8: 03/2024 | G8: 04/2024 | H8: 05/2024 | I8: 06/2024 | J8: 07/2024 | K8: 08/2024 | L8: 09/2024 | M8: 10/2024 | N8: 11/2024 | O8: 12/2024
B9: Condensado | C9: 3578.411205 | D9: 3511.483499 | E9: 3441.062223 | F9: 3351.094268 | G9: 3187.701672 | H9: 3310.653153 | I9: 3404.65031 | J9: 3225.58986 | K9: 3335.203022 | L9: 3465.096808 | M9: 3263.24773 | N9: 3305.079981 | O9: 3413.336314
B10: Óleo | C10: 6.720703376 | D10: 7.638825116 | E10: 7.264365741 | F10: 5.160161544 | G10: 6.697012928 | H10: 7.279311547 | I10: 7.011494203 | J10: 6.819543074 | K10: 7.441463255 | L10: 7.380828911 | M10: 7.663896095 | N10: 7.488427643 | O10: 7.894646297
B11: Petróleo | C11: =SUM(C9:C10) -> 3585.131908 | D11: =SUM(D9:D10) -> 3519.122324 | E11: 3448.326589 | F11: 3356.254429 | G11: 3194.398685 | H11: 3317.932465 | I11: 3411.661804 | J11: 3232.409403 | K11: 3342.644485 | L11: 3472.477637 | M11: 3270.911626 | N11: 3312.568408 | O11: 3421.23096
B14: Tabela 2. Histórico de produção de gás natural – GASA e GASN (MMm³/d)
C16: 12/2023 | D16: 01/2024 | E16: 02/2024 | F16: 03/2024 | G16: 04/2024 | H16: 05/2024 | I16: 06/2024 | J16: 07/2024 | K16: 08/2024 | L16: 09/2024 | M16: 10/2024 | N16: 11/2024 | O16: 12/2024
B17: GASA | C17: 140.9284671 | D17: 135.4118571 | E17: 134.0272056 | F17: 134.9164869 | G17: 126.6622654 | H17: 134.4337137 | I17: 138.3407698 | J17: 135.4480822 | K17: 141.8842434 | L17: 150.615941 | M17: 138.7854892 | N17: 141.0844366 | O17: 143.7242951
B18: GASN | C18: 15.70129406 | D18: 18.51562226 | E18: 14.60744921 | F18: 9.065814742 | G18: 10.01387227 | H18: 11.19694632 | I18: 11.83442887 | J18: 15.92780203 | K18: 17.92406345 | L18: 19.42443303 | M18: 20.16465716 | N18: 16.65182023 | O18: 17.402905
B19: Gás Total | C19: =SUM(C17:C18) -> 156.6297612 | D19: =SUM(D17:D18) -> 153.9274793 | E19: 148.6346548 | F19: 143.9823016 | G19: 136.6761377 | H19: 145.6306601 | I19: 150.1751986 | J19: 151.3758842 | K19: 159.8083069 | L19: 170.040374 | M19: 158.9501463 | N19: 157.7362568 | O19: 161.1272001
B22: Tabela 3. Histórico da movimentação de gás natural (Mm³/d)
B24: Mês/Ano | C24: Consumo Interno | D24: Queima | E24: Injeção | F24: Disponível | G24: Produção | H24: Aproveitamento | I24: Injeção descontando CO2 | J24: Produção descontando CO2
B25: 12/2023 | C25: 16272.81926 | D25: 3395.593097 | E25: 85616.51745 | F25: 51344.83139 | G25: 156629.7612 | H25: 0.978380707 | I25: 63822.47165 | J25: 132063.5279
B26: 01/2024 | C26: 16452.41623 | D26: 4545.801258 | E26: 81304.29703 | F26: 51624.96481 | G26: 153927.4793 | H26: 0.9706077875 | I26: 60705.45675 | J26: 129528.4684
B27: 02/2024 | C27: 16455.23669 | D27: 5284.912759 | E27: 75653.09134 | F27: 51241.41397 | G27: 148634.6548 | H27: 0.9646242021 | I27: 55955.72074 | J27: 124393.4643
B28: 03/2024 | C28: 15912.39194 | D28: 5617.911613 | E28: 83874.22681 | F28: 38577.77129 | G28: 143982.3016 | H28: 0.9611735055 | I28: 63468.47533 | J28: 119402.2332
B29: 04/2024 | C29: 15144.3962 | D29: 3921.512867 | E29: 73277.49607 | F29: 44332.73257 | G29: 136676.1377 | H29: 0.9714368083 | I29: 56827.27684 | J29: 115102.5225
B30: 05/2024 | C30: 15837.61274 | D30: 3547.008968 | E30: 80280.98394 | F30: 45965.05442 | G30: 145630.6601 | H30: 0.9757747027 | I30: 60137.87125 | J30: 120891.4932
B31: 06/2024 | C31: 16172.61773 | D31: 3052.424333 | E31: 84245.09647 | F31: 46705.0601 | G31: 150175.1986 | H31: 0.979776162 | I31: 63584.93047 | J31: 125026.2927
B32: 07/2024 | C32: 15627.95852 | D32: 3379.869645 | E32: 82543.42329 | F32: 49824.63277 | G32: 151375.8842 | H32: 0.9777819981 | I32: 62674.71708 | J32: 125769.3596
B33: 08/2024 | C33: 15259.75952 | D33: 3609.65729 | E33: 86579.15003 | F33: 54359.74003 | G33: 159808.3069 | H33: 0.9775084282 | I33: 65377.70615 | J33: 132528.6985
B34: 09/2024 | C34: 16009.48377 | D34: 3632.621167 | E34: 93496.96413 | F34: 56901.30493 | G34: 170040.374 | H34: 0.978737684 | I34: 68265.09854 | J34: 140277.8321
B35: 10/2024 | C35: 15415.21165 | D35: 3580.67771 | E35: 83833.52735 | F35: 56120.72961 | G35: 158950.1463 | H35: 0.9775974897 | I35: 60401.76678 | J35: 131588.889
B36: 11/2024 | C36: 15644.8962 | D36: 6207.5537 | E36: 85117.0216 | F36: 50766.7853 | G36: 157736.2568 | H36: 0.9608407721 | I36: 60729.08932 | J36: 128803.4761
B37: 12/2024 | C37: 16565.3591 | D37: 5651.261 | E37: 87786.72042 | F37: 51123.85955 | G37: 161127.2001 | H37: 0.9651021938 | I37: 62820.64366 | J37: 131849.4809
B39: Tabela 4. Histórico de produção de petróleo e gás natural (Mboe/d)
C42: 12/2023 | D42: 01/2024 | E42: 02/2024 | F42: 03/2024 | G42: 04/2024 | H42: 05/2024 | I42: 06/2024 | J42: 07/2024 | K42: 08/2024 | L42: 09/2024 | M42: 10/2024 | N42: 11/2024 | O42: 12/2024
B43: Petróleo | C43: 3585.131908 | D43: 3519.122324 | E43: 3448.326589 | F43: 3356.254429 | G43: 3194.398685 | H43: 3317.932465 | I43: 3411.661804 | J43: 3232.409403 | K43: 3342.644485 | L43: 3472.477637 | M43: 3270.911626 | N43: 3312.568408 | O43: 3421.23096
B44: Gás Natural | C44: 985.1714383 | D44: 968.1745987 | E44: 934.8837378 | F44: 905.6213207 | G44: 859.6669377 | H44: 915.989182 | I44: 944.5734661 | J44: 952.1255504 | K44: 1005.163887 | L44: 1069.521645 | M44: 999.7662198 | N44: 992.1310854 | O44: 1013.459474
B45: Total | C45: =SUM(C43:C44) -> 4570.303346 | D45: =SUM(D43:D44) -> 4487.296923 | E45: 4383.210327 | F45: 4261.87575 | G45: 4054.065623 | H45: 4233.921647 | I45: 4356.23527 | J45: 4184.534953 | K45: 4347.808372 | L45: 4541.999282 | M45: 4270.677846 | N45: 4304.699494 | O45: 4434.690434

Sheet 2. Dados de Produção
B2: 2. DADOS DE PRODUÇÃO - DISTRIBUIÇÃO
B6: Tabela 5. Distribuição da produção de petróleo e gás natural por estado
B8: Estado | C8: Petróleo (bbl/d) | D8: Gás Natural (Mm³/d) | E8: Produção Total (boe/d) | F8: Nº Campos produtores
B9: Rio de Janeiro | C9: 3036079.456 | D9: 122998.9779 | E9: 3809719.657 | F9: 51
B10: São Paulo | C10: 160798.7354 | D10: 9615.241355 | E10: 221276.7766 | F10: 7
B11: Espírito Santo | C11: 140811.9912 | D11: 2977.308355 | E11: 159538.6951 | F11: 26
B12: Amazonas | C12: 10993.07204 | D12: 13991.68148 | E12: 98998.09015 | F12: 6
B13: Rio Grande do Norte | C13: 32204.43082 | D13: 1139.697871 | E13: 39372.91388 | F13: 65
B14: Bahia | C14: 20694.21121 | D14: 2677.423774 | E14: 37534.69804 | F14: 73
B15: Maranhão | C15: 114.6829173 | D15: 5730.721742 | E15: 36159.83384 | F15: 8
B16: Alagoas | C16: 3424.211114 | D16: 1804.503903 | E16: 14774.19781 | F16: 11
B17: Sergipe | C17: 12660.55342 | D17: 63.15648387 | E17: 13057.7957 | F17: 17
B18: Paraná | C18: 2666.228749 | D18: 127.5146452 | E18: 3468.271639 | F18: 2
B19: Ceará | C19: 783.3875167 | D19: 0.9725806452 | E19: 789.5048642 | F19: 2
B20: Total | C20: =SUM(C9:C19) -> 3421230.96 | D20: =SUM(D9:D19) -> 161127.2001 | E20: 4434690.434 | F20: 268
B22: Tabela 6. Distribuição da produção de petróleo e gás natural por bacia
B24: Bacia | C24: Petróleo (bbl/d) | D24: Gás Natural (Mm³/d) | E24: Produção Total (boe/d) | F24: Nº Campos produtores
B25: Santos | C25: 2643797.771 | D25: 124323.4751 | E25: 3425768.808 | F25: 30
B26: Campos | C26: 681091.6348 | D26: 10729.05806 | E26: 748575.3715 | F26: 32
B27: Solimões | C27: 10776.85312 | D27: 13322.59 | E27: 94573.41293 | F27: 5
B28: Potiguar | C28: 32987.81834 | D28: 1140.670452 | E28: 40162.41875 | F28: 67
B29: Recôncavo | C29: 20690.67147 | D29: 2610.318516 | E29: 37109.07898 | F29: 68
B30: Parnaíba | C30: 82.35735186 | D30: 5727.806419 | E30: 36109.17145 | F30: 7
B31: Espírito Santo | C31: 12800.77702 | D31: 538.9943871 | E31: 16190.94931 | F31: 22
B32: Alagoas | C32: 3424.211114 | D32: 1804.503903 | E32: 14774.19781 | F32: 11
B33: Sergipe | C33: 12660.55342 | D33: 63.15648387 | E33: 13057.7957 | F33: 17
B34: Amazonas | C34: 216.2189144 | D34: 669.0914839 | E34: 4424.677221 | F34: 1
B35: Paraná | C35: 2666.228749 | D35: 127.5146452 | E35: 3468.271639 | F35: 2
B36: Tucano Sul | C36: 3.53974275 | D36: 67.10525806 | E36: 425.619066 | F36: 5
B37: Barreirinhas | C37: 32.32556546 | D37: 2.915322581 | E37: 50.66239058 | F37: 1
B38: Total | C38: =SUM(C25:C37) -> 3421230.96 | D38: =SUM(D25:D37) -> 161127.2001 | E38: 4434690.434 | F38: 268
B40: Tabela 7. Distribuição da produção de petróleo e gás natural por operador
B42: Nº | C42: Operador | D42: Petróleo (bbl/d) | E42: Gás Natural (Mm³/d) | F42: Produção Total (boe/d)
B43: 1 | C43: PETROBRAS | D43: 3048885.608 | E43: 145372.2857 | F43: 3963249.664
B44: 2 | C44: EQUINOR BRASIL | D44: 92926.69543 | E44: 210.508871 | F44: 94250.75623
B45: 3 | C45: PETRO RIO JAGUAR | D45: 63005.36601 | E45: 773.3436452 | F45: 67869.55061
B46: 4 | C46: TOTALENERGIES EP | D46: 45893.32678 | E46: 1581.268065 | F46: 55839.20247
B47: 5 | C47: ENEVA | D47: 298.5762662 | E47: 6396.897903 | F47: 40533.84867
B48: 6 | C48: SHELL BRASIL | D48: 28836.84828 | E48: 291.7923871 | F48: 30672.16696
B49: 7 | C49: TRIDENT ENERGY | D49: 21654.45054 | E49: 413.8331935 | F49: 24257.38269
B50: 8 | C50: 3R POTIGUAR | D50: 16443.80089 | E50: 71.62309677 | F50: 16894.29656
B51: 9 | C51: PERENCO BRASIL | D51: 16304.66055 | E51: 75.02412903 | F51: 16776.54807
B52: 10 | C52: KAROON BRASIL | D52: 15413.87818 | E52: 125.0402581 | F52: 16200.35765
B53: 11 | C53: ORIGEM ALAGOAS | D53: 3156.580916 | E53: 1798.266484 | F53: 14467.33543
B54: 12 | C54: POTIGUAR E&P S.A. | D54: 8864.608042 | E54: 762.9718065 | F54: 13663.55574
B55: 13 | C55: CARMO | D55: 12017.90832 | E55: 54.43180645 | F55: 12360.27404
B56: 14 | C56: PRIO BRAVO | D56: 11652.00978 | E56: 43.91958065 | F56: 11928.2556
B57: 15 | C57: 3R BAHIA | D57: 3199.821534 | E57: 976.8045484 | F57: 9343.73655
B58: 16 | C58: 3R RNCE | D58: 6969.952112 | E58: 194.6212581 | F58: 8194.082847
B59: 17 | C59: SPE MIRANGA | D59: 1666.886287 | E59: 742.549871 | F59: 6337.383891
B60: 18 | C60: SEACREST NORTE CAP | D60: 5923.117526 | E60: 35.30693548 | F60: 6145.191442
B61: 19 | C61: BW MAROMBA | D61: 5389.85729 | E61: 54.62509677 | F61: 5733.43877
B62: 20 | C62: SPE TIÊTA | D62: 3528.63454 | E62: 96.47645161 | F62: 4135.45309
B63: 21 | C63: 3R PETROLEUM OFF | D63: 1256.355461 | E63: 436.025871 | F63: 3998.875344
B64: 22 | C64: PARANÁ XISTO | D64: 2665.618029 | E64: 99.14990323 | F64: 3289.252082
B65: 23 | C65: PETRORECÔNCAVO | D65: 2131.232728 | E65: 66.60225806 | F65: 2550.148276
B66: 24 | C66: ALVOPETRO | D66: 59.41942928 | E66: 218.6197742 | F66: 1434.496271
B67: 25 | C67: SEACREST SPE CRICARÉ | D67: 869.3251907 | E67: 7.158419355 | F67: 914.3502884
B68: 26 | C68: RECÔNCAVO ENERGIA SPE | D68: 8.080782673 | E68: 92.87793548 | F68: 592.2653501
B69: 27 | C69: PETROM | D69: 505.0873661 | E69: 6.771096774 | F69: 547.6762783
B70: 28 | C70: PETROSYNERGY | D70: 347.0603536 | E70: 8.996935484 | F70: 403.6493683
B71: 29 | C71: CAPIXABA ENERGIA | D71: 300.0271834 | E71: 8.668193548 | F71: 354.5484738
B72: 30 | C72: MANDACARU ENERGIA | D72: 288.5683669 | E72: 0.1203225806 | F72: 289.3251731
B73: 31 | C73: ORIGEM | D73: 3.53974275 | E73: 44.908 | F73: 286.0025302
B74: 32 | C74: BARRA BONITA | D74: 0.6107202613 | E74: 28.36474194 | F74: 179.0195577
B75: 33 | C75: NÍON ENERGIA | D75: 142.1050686 | E75: 4.905580645 | F75: 172.9602388
B76: 34 | C76: SLIM DRILLING | D76: 143.6355214 | E76: 0.692 | F76: 147.98807
B77: 35 | C77: BGM | D77: 141.5359423 | E77: 0.216483871 | F77: 142.8975847
B78: 36 | C78: PETROBORN | D78: 0 | E78: 22.19725806 | F78: 139.6165357
B79: 37 | C79: NOVA PETRÓLEO | D79: 71.73487726 | E79: 0.556516129 | F79: 75.23525797
B80: 38 | C80: PETRO-VICTORY | D80: 39.42493487 | E80: 2.937903226 | F80: 57.90378796
B81: 39 | C81: IMETAME | D81: 41.40135549 | E81: 0.4347741935 | F81: 44.13600256
B82: 40 | C82: PERÍCIA | D82: 40.27507371 | E82: 0.1751612903 | F82: 41.37680495
B83: 41 | C83: ENAUTA ENERGIA | D83: 36.85422866 | E83: 0.1466451613 | F83: 37.77659886
B84: 42 | C84: ENERGIZZI ENERGIAS | D84: 33.00892288 | E84: 0.7398064516 | F84: 37.6621649
B85: 43 | C85: CREATIVE ENERGY | D85: 0 | E85: 4.13616129 | F85: 26.01566865
B86: 44 | C86: PHOENIX ÓLEO & GÁS | D86: 24.46817249 | E86: 0.07690322581 | F86: 24.95187917
B87: 45 | C87: NTF | D87: 23.44841168 | E87: 0.006483870968 | F87: 23.489194
B88: 46 | C88: GUTO & CACAL | D88: 9.022833894 | E88: 0.02032258065 | F88: 9.150659065
B89: 47 | C89: VIPETRO | D89: 7.180325358 | E89: 0.01712903226 | F89: 7.288063716
B90: 48 | C90: EPG BRASIL | D90: 5.709524303 | E90: 0.07903225806 | F90: 6.20662219
B91: 49 | C91: NORD | D91: 1.318831129 | E91: 0.002096774194 | F91: 1.33201944
B92: =B91+1 -> 50 | C92: TARMAR | D92: 1.268106855 | E92: 0.002290322581 | F92: 1.282512549
B93: =B92+1 -> 51 | C93: BRASIL REFINARIAS | D93: 1.0552678 | E93: 0.002967741935 | F93: 1.073934333
B94: Total | D94: =SUM(D43:D91) -> 3421228.637 | E94: =SUM(E43:E91) -> 161127.1948 | F94: =SUM(F43:F91) -> 4434688.078
B98: Tabela 8. Distribuição da produção de petróleo e gás natural por concessionário
B100: Nº | C100: Concessionário | D100: Petróleo (bbl/d) | E100: Gás Natural (Mm³/d) | F100: Produção Total (boe/d)
B101: 1 | C101: PETROBRAS | D101: 2088882.393 | E101: 100559.5302 | F101: 2721382.732
B102: 2 | C102: SHELL BRASIL | D102: 387811.5852 | E102: 19654.63396 | F102: 511435.4984
B103: 3 | C103: TOTALENERGIES EP | D103: 158613.7362 | E103: 8681.289593 | F103: 213217.3983
B104: 4 | C104: PETROGAL BRASIL | D104: 101871.9086 | E104: 4720.493235 | F104: 131562.9141
B105: 5 | C105: PPSA | D105: 103985.0359 | E105: 133.5078087 | F105: 104824.7747
B106: 6 | C106: CNOOC PETROLEUM | D106: 73806.62201 | E106: 4491.82418 | F106: 102059.3427
B107: 7 | C107: CNODC BRASIL | D107: 53545.28112 | E107: 3632.234913 | F107: 76391.34859
B108: 8 | C108: PETRO RIO JAGUAR | D108: 53467.35746 | E108: 663.0991012 | F108: 57638.12482
B109: 9 | C109: EQUINOR BRASIL | D109: 55756.01726 | E109: 126.3053226 | F109: 56550.45374
B110: 10 | C110: PETRONAS | D110: 42803.92192 | E110: 1034.788711 | F110: 49312.54631
B111: 11 | C111: REPSOL SINOPEC | D111: 37733.34621 | E111: 1579.728839 | F111: 47669.54046
B112: 12 | C112: ENEVA | D112: 298.5762662 | E112: 6396.897903 | F112: 40533.84867
B113: 13 | C113: PRIO | D113: 38235.02273 | E113: 86.42273548 | F113: 38778.60532
B114: 14 | C114: EQUINOR ENERGY | D114: 25188.6651 | E114: 646.9316613 | F114: 29257.74233
B115: 15 | C115: QATARENERGY | D115: 23440.64344 | E115: 798.0410246 | F115: 28460.16986
B116: 16 | C116: TRIDENT ENERGY | D116: 21654.45054 | E116: 413.8331935 | F116: 24257.38269
B117: 17 | C117: PRIO BRAVO | D117: 17744.59473 | E117: 114.4534053 | F117: 18464.4849
B118: 18 | C118: 3R POTIGUAR | D118: 16443.80089 | E118: 71.62309677 | F118: 16894.29656
B119: 19 | C119: PERENCO BRASIL | D119: 16304.66055 | E119: 75.02412903 | F119: 16776.54807
B120: 20 | C120: KAROON BRASIL | D120: 15413.87818 | E120: 125.0402581 | F120: 16200.35765
B121: 21 | C121: ORIGEM ALAGOAS | D121: 3156.580916 | E121: 1798.266484 | F121: 14467.33543
B122: 22 | C122: POTIGUAR E&P S.A. | D122: 8419.816336 | E122: 734.495429 | F122: 13039.65303
B123: 23 | C123: CARMO | D123: 12017.90832 | E123: 54.43180645 | F123: 12360.27404
B124: 24 | C124: 3R BAHIA | D124: 3194.513705 | E124: 976.6385935 | F124: 9337.384897
B125: 25 | C125: ONGC CAMPOS | D125: 7785.949037 | E125: 78.78394452 | F125: 8281.485079
B126: 26 | C126: 3R RNCE | D126: 6969.952112 | E126: 194.6212581 | F126: 8194.082847
B127: 27 | C127: SPE MIRANGA | D127: 1666.886287 | E127: 742.549871 | F127: 6337.383891
B128: 28 | C128: SEACREST NORTE CAP | D128: 5923.117526 | E128: 35.30693548 | F128: 6145.191442
B129: 29 | C129: BW MAROMBA | D129: 5389.85729 | E129: 54.62509677 | F129: 5733.43877
B130: 30 | C130: SPE TIÊTA | D130: 3498.257903 | E130: 96.01341935 | F130: 4102.164068
B131: 31 | C131: 3R PETROLEUM OFF | D131: 827.7714342 | E131: 434.6892621 | F131: 3561.884302
B132: 32 | C132: PARANÁ XISTO | D132: 2665.618029 | E132: 99.14990323 | F132: 3289.252082
B133: 33 | C133: PETRORECÔNCAVO | D133: 2131.232728 | E133: 66.60225806 | F133: 2550.148276
B134: 34 | C134: ALVOPETRO | D134: 59.41942928 | E134: 218.6197742 | F134: 1434.496271
B135: 35 | C135: SEACREST SPE CRICARÉ | D135: 869.3251907 | E135: 7.158419355 | F135: 914.3502884
B136: 36 | C136: SHB | D136: 580.3699802 | E136: 28.48479677 | F136: 759.5339398
B137: 37 | C137: RECÔNCAVO ENERGIA SPE | D137: 8.080782673 | E137: 92.87793548 | F137: 592.2653501
B138: 38 | C138: PETROM | D138: 505.0873661 | E138: 6.771096774 | F138: 547.6762783
B139: 39 | C139: NOVA TÉCNICA | D139: 428.5840266 | E139: 1.336608871 | F139: 436.9910425
B140: 40 | C140: PETROSYNERGY | D140: 347.0603536 | E140: 8.996935484 | F140: 403.6493683
B141: 41 | C141: CAPIXABA ENERGIA | D141: 300.0271834 | E141: 8.668193548 | F141: 354.5484738
B142: 42 | C142: 3R PESCADA | D142: 85.22736173 | E142: 37.20934677 | F142: 319.2670832
B143: 43 | C143: ORIGEM | D143: 3.53974275 | E143: 44.908 | F143: 286.0025302
B144: 44 | C144: BARRA BONITA | D144: 0.6107202613 | E144: 28.36474194 | F144: 179.0195577
B145: 45 | C145: NÍON ENERGIA | D145: 142.1050686 | E145: 4.905580645 | F145: 172.9602388
B146: 46 | C146: MANDACARU ENERGIA | D146: 152.9900921 | E146: 0.1119032258 | F146: 153.6939421
B147: 47 | C147: PETROBORN | D147: 0 | E147: 22.19725806 | F147: 139.6165357
B148: 48 | C148: BGM | D148: 94.06578245 | E148: 0.1319564516 | F148: 94.89576346
B149: 49 | C149: GEOPAR - GEOSOL | D149: 78.87701738 | E149: 0.4152 | F149: 81.48854649
B150: 50 | C150: NOVA PETRÓLEO | D150: 71.73487726 | E150: 0.556516129 | F150: 75.23525797
B151: 51 | C151: SLIM DRILLING | D151: 64.75850406 | E151: 0.2768 | F151: 66.49952347
B152: 52 | C152: PETRO-VICTORY | D152: 39.42493487 | E152: 2.937903226 | F152: 57.90378796
B153: 53 | C153: CAMPO PETRÓLEO | D153: 47.47015983 | E153: 0.08452741935 | F153: 48.00182124
B154: 54 | C154: ENERGIZZI ENERGIAS | D154: 33.00892288 | E154: 0.7398064516 | F154: 37.6621649
B155: 55 | C155: ENAUTA ENERGIA | D155: 29.48338293 | E155: 0.117316129 | F155: 30.22127909
B156: 56 | C156: CREATIVE ENERGY | D156: 0 | E156: 4.13616129 | F156: 26.01566865
B157: 57 | C157: PHOENIX ÓLEO & GÁS | D157: 24.46817249 | E157: 0.07690322581 | F157: 24.95187917
B158: 58 | C158: IMETAME | D158: 20.70067775 | E158: 0.2173870968 | F158: 22.06800128
B159: 59 | C159: IPI | D159: 20.70067775 | E159: 0.2173870968 | F159: 22.06800128
B160: 60 | C160: ANDORINHA PETRÓLEO | D160: 20.13753685 | E160: 0.08758064516 | F160: 20.68840247
B161: 61 | C161: PERÍCIA | D161: 20.13753685 | E161: 0.08758064516 | F161: 20.68840247
B162: 62 | C162: NTF | D162: 11.72420584 | E162: 0.003241935484 | F162: 11.744597
B163: 63 | C163: GUTO & CACAL | D163: 9.022833894 | E163: 0.02032258065 | F163: 9.150659065
B164: 64 | C164: WESTLAWN ENERGIA | D164: 7.370845732 | E164: 0.02932903226 | F164: 7.555319772
B165: 65 | C165: VIPETRO | D165: 7.180325358 | E165: 0.01712903226 | F165: 7.288063716
B166: =B165+1 -> 66 | C166: SONANGOL GUANAMBI | D166: 5.307828631 | E166: 0.1659548387 | F166: 6.351653035
B167: =B166+1 -> 67 | C167: EPG BRASIL | D167: 5.709524303 | E167: 0.07903225806 | F167: 6.20662219
B168: 68 | C168: GEOFLUX | D168: 5.86210292 | E168: 0.001620967742 | F168: 5.872298499
B169: 69 | C169: NEWO | D169: 5.86210292 | E169: 0.001620967742 | F169: 5.872298499
B170: 70 | C170: NORD | D170: 1.318831129 | E170: 0.002096774194 | F170: 1.33201944
B171: 71 | C171: TARMAR | D171: 1.268106855 | E171: 0.002290322581 | F171: 1.282512549
B172: 72 | C172: BRASIL REFINARIAS | D172: 1.0552678 | E172: 0.002967741935 | F172: 1.073934333
B173: Total | D173: =SUM(D101:D172) -> 3400758.037 | E173: =SUM(E101:E172) -> 159892.8967 | F173: 4406453.977
B175: Tabela 9. Movimentação de gás natural por destinação (Mm³/d)
B177: Bacia | C177: Consumo Interno | D177: Queima | E177: Disponível | F177: Injeção | G177: Injeção descontando CO2 | H177: Produção | I177: Produção descontando CO2
B178: Santos | C178: 10529.56316 | D178: 3984.024677 | E178: 28857.27461 | F178: 80952.61268 | G178: 55986.95568 | H178: 124323.4751 | I178: 95299.23863
B179: Solimões | C179: 414.707129 | D179: 57.99941935 | E179: 6357.63371 | F179: 6492.249742 | G179: 6492.249742 | H179: 13322.59 | I179: 13300.34059
B180: Campos | C180: 4842.61229 | D180: 1321.865935 | E180: 4564.579839 | F180: 0 | G180: 0 | H180: 10729.05806 | I180: 10543.86863
B181: Parnaíba | C181: 67.52374194 | D181: 14.79412903 | E181: 5645.488548 | F181: 0 | G181: 0 | H181: 5727.806419 | I181: 5727.806419
B182: Recôncavo | C182: 116.828 | D182: 69.01835484 | E182: 2096.68829 | F182: 327.783871 | G182: 327.3641139 | H182: 2610.318516 | I182: 2588.743151
B183: Alagoas | C183: 21.82883871 | D183: 11.05593548 | E183: 1771.619129 | F183: 0 | G183: 0 | H183: 1804.503903 | I183: 1791.981748
B184: Potiguar | C184: 365.7700645 | D184: 102.4022258 | E184: 672.4981613 | F184: 0 | G184: 0 | H184: 1140.670452 | I184: 1135.865831
B185: Amazonas | C185: 1.135967742 | D185: 4.833096774 | E185: 663.1224194 | F185: 0 | G185: 0 | H185: 669.0914839 | I185: 669.0914839
B186: Espírito Santo | C186: 137.7380968 | D186: 35.81190323 | E186: 365.4443871 | F186: 0 | G186: 0 | H186: 538.9943871 | I186: 532.19401
B187: Paraná | C187: 63.07954839 | D187: 1.612903226 | E187: 62.82219355 | F187: 0 | G187: 0 | H187: 127.5146452 | I187: 127.4550792
B188: Tucano Sul | C188: 1.851129032 | D188: 0.002225806452 | E188: 65.25190323 | F188: 0 | G188: 0 | H188: 67.10525806 | I188: 67.03214929
B189: Sergipe | C189: 2.721129032 | D189: 44.92487097 | E189: 1.436354839 | F189: 14.07412903 | G189: 14.07412903 | H189: 63.15648387 | I189: 62.94786194
B190: Barreirinhas | D190: 2.915322581 | E190: 0 | F190: 0 | G190: 0 | H190: 2.915322581 | I190: 2.915322581
B191: Camamu | E191: 0 | F191: 0 | G191: 0 | I191: 0
B192: Ceará | E192: 0 | F192: 0 | G192: 0 | I192: 0
B193: Mucuri | E193: 0 | F193: 0 | G193: 0 | I193: 0
B194: Total | C194: =SUM(C178:C193) -> 16565.3591 | D194: =SUM(D178:D193) -> 5651.261 | E194: 51123.85955 | F194: 87786.72042 | G194: 62820.64366 | H194: 161127.2001 | I194: 131849.4809
B196: Tabela 10. Distribuição da produção dos campos do Pré-sal¹
B198: Campo | C198: Petróleo (bbl/d) Pré Sal | D198: Petróleo (bbl/d) Pós Sal | E198: Gás natural (Mm³/d) Pré Sal | F198: Gás natural (Mm³/d) Pós Sal | G198: Produção (boe/d) Pré Sal | H198: Produção (boe/d) Pós Sal
B199: Tupi | C199: 839908.1617 | D199: 0 | E199: 42007.24252 | F199: 0 | G199: 1104125.736 | H199: 0
B200: Búzios | C200: 556277.4192 | D200: 0 | E200: 23311.00339 | F200: 0 | G200: 702899.2014 | H200: 0
B201: Mero | C201: 418179.8991 | D201: 0 | E201: 27726.45645 | F201: 0 | G201: 592574.0422 | H201: 0
B202: Sépia | C202: 129101.4245 | D202: 0 | E202: 5171.686935 | F202: 0 | G202: 161630.3528 | H202: 0
B203: Atapu | C203: 125159.1169 | D203: 0 | E203: 4406.709968 | F203: 0 | G203: 152876.4853 | H203: 0
B204: Sapinhoá | C204: 93849.63516 | D204: 0 | E204: 4447.457258 | F204: 0 | G204: 121823.2963 | H204: 0
B205: Itapu | C205: 82034.34577 | D205: 0 | E205: 1094.722419 | F205: 0 | G205: 88919.94179 | H205: 0
B206: Itapu_Eco | C206: 76614.88823 | D206: 0 | E206: 1022.401516 | F206: 0 | G206: 83045.59951 | H206: 0
B207: Berbigão | C207: 63468.86576 | D207: 0 | E207: 1117.351774 | F207: 0 | G207: 70496.79613 | H207: 0
B208: Sul de Tupi | C208: 51472.73602 | D208: 0 | E208: 2371.197935 | F208: 0 | G208: 66387.12051 | H208: 0
B209: Sururu | C209: 53904.8974 | D209: 0 | E209: 1745.282065 | F209: 0 | G209: 64882.38998 | H209: 0
B210: Jubarte | C210: 46943.27077 | D210: 51735.24489 | E210: 1601.119323 | F210: 537.4333871 | G210: 57014.00709 | H210: 55115.59878
B211: Lapa | C211: 45893.32678 | D211: 0 | E211: 1581.268065 | F211: 0 | G211: 55839.20247 | H211: 0
B212: Oeste de Atapu | C212: 25990.75937 | D212: 0 | E212: 915.1050323 | F212: 0 | G212: 31746.59616 | H212: 0
B213: Sul de Berbigão | C213: 15694.33554 | D213: 0 | E213: 1532.533871 | F213: 0 | G213: 25333.6824 | H213: 0
B214: Sépia Leste | C214: 17723.20079 | D214: 0 | E214: 709.9754839 | F214: 0 | G214: 22188.81169 | H214: 0
B215: Anc_Mero | C215: 15167.14659 | D215: 0 | E215: 1005.622806 | F215: 0 | G215: 21492.32297 | H215: 0
B216: Barracuda | C216: 8047.100538 | D216: 9809.915964 | E216: 159.1462903 | F216: 228.6722258 | G216: 9048.100466 | H216: 11248.22082
B217: Caratinga | C217: 7428.092539 | D217: 1946.25814 | E217: 146.9042581 | F217: 36.91722581 | G217: 8352.09241 | H217: 2178.460476
... 12 more rows

Sheet 3. Ranking
B2: 3. RANKING DA PRODUÇÃO
B6: Tabela 11. Os 30 poços com maior produção de petróleo (bbl/d)
B8: Nº | C8: Poço | D8: Campo | E8: Bacia | F8: Localização | G8: Petróleo (bbl/d)
B9: 1 | C9: 9-BRSA-1254-RJS | D9: Sépia / Sépia Leste / Sépia_Eco | E9: Santos | F9: Mar | G9: 48106.00626
B10: 2 | C10: 7-ATP-6-RJS | D10: Atapu / Atapu_Eco / Anc_Norte_Atapu / Oeste De Atapu | E10: Santos | F10: Mar | G10: 47664.86374
B11: 3 | C11: 9-ATP-1-RJS | D11: Atapu / Atapu_Eco / Anc_Norte_Atapu / Oeste De Atapu | E11: Santos | F11: Mar | G11: 46248.94777
B12: 4 | C12: 3-BRSA-1322-RJS | D12: Anc_Mero / Mero | E12: Santos | F12: Mar | G12: 46023.89695
B13: 5 | C13: 3-BRSA-1255-RJS | D13: Anc_Mero / Mero | E13: Santos | F13: Mar | G13: 45988.21729
B14: 6 | C14: 7-BUZ-18-RJS | D14: Búzios / Búzios_Eco / Tambuatá | E14: Santos | F14: Mar | G14: 45954.45765
B15: 7 | C15: 7-BUZ-12-RJS | D15: Búzios / Búzios_Eco / Tambuatá | E15: Santos | F15: Mar | G15: 44276.09185
B16: 8 | C16: 7-MRO-7A-RJS | D16: Anc_Mero / Mero | E16: Santos | F16: Mar | G16: 43550.88061
B17: 9 | C17: 7-MRO-17A-RJS | D17: Anc_Mero / Mero | E17: Santos | F17: Mar | G17: 43505.00335
B18: 10 | C18: 7-MRO-18D-RJS | D18: Anc_Mero / Mero | E18: Santos | F18: Mar | G18: 43422.25298
B19: 11 | C19: 7-MRO-6DB-RJS | D19: Anc_Mero / Mero | E19: Santos | F19: Mar | G19: 43220.01652
B20: 12 | C20: 7-ITP-5D-RJS | D20: Itapu / Itapu_Eco | E20: Santos | F20: Mar | G20: 43131.80275
B21: 13 | C21: 3-BRSA-944A-RJS | D21: Búzios / Búzios_Eco / Tambuatá | E21: Santos | F21: Mar | G21: 40900.44639
B22: 14 | C22: 7-BUZ-25-RJS | D22: Búzios / Búzios_Eco / Tambuatá | E22: Santos | F22: Mar | G22: 40453.21188
B23: 15 | C23: 7-BUZ-30-RJS | D23: Búzios / Búzios_Eco / Tambuatá | E23: Santos | F23: Mar | G23: 39833.42537
B24: 16 | C24: 9-ITP-1-RJS | D24: Itapu / Itapu_Eco | E24: Santos | F24: Mar | G24: 39438.45797
B25: 17 | C25: 3-BRSA-1201-RJS | D25: Sépia / Sépia Leste / Sépia_Eco | E25: Santos | F25: Mar | G25: 37634.48243
B26: 18 | C26: 9-BUZ-4-RJS | D26: Búzios / Búzios_Eco / Tambuatá | E26: Santos | F26: Mar | G26: 37305.26099
B27: 19 | C27: 7-BUZ-24D-RJS | D27: Búzios / Búzios_Eco / Tambuatá | E27: Santos | F27: Mar | G27: 36005.12034
B28: 20 | C28: 3-BRSA-1345-RJS | D28: Anc_Mero / Mero | E28: Santos | F28: Mar | G28: 32930.78031
B29: 21 | C29: 7-MRO-16D-RJS | D29: Anc_Mero / Mero | E29: Santos | F29: Mar | G29: 31382.21752
B30: 22 | C30: 7-BUZ-45DA-RJS | D30: Búzios / Búzios_Eco / Tambuatá | E30: Santos | F30: Mar | G30: 31367.75745
B31: 23 | C31: 7-SEP-6-RJS | D31: Sépia / Sépia Leste / Sépia_Eco | E31: Santos | F31: Mar | G31: 31234.29276
B32: 24 | C32: 7-TUP-121DA-RJS | D32: Tupi | E32: Santos | F32: Mar | G32: 30974.72386
B33: 25 | C33: 7-BUZ-46D-RJS | D33: Búzios / Búzios_Eco / Tambuatá | E33: Santos | F33: Mar | G33: 30428.92722
B34: 26 | C34: 7-ITP-4-RJS | D34: Itapu / Itapu_Eco | E34: Santos | F34: Mar | G34: 30324.75904
B35: 27 | C35: 7-OATP-1-RJS | D35: Atapu / Atapu_Eco / Anc_Norte_Atapu / Oeste De Atapu | E35: Santos | F35: Mar | G35: 30014.4397
B36: 28 | C36: 1-BRSA-976-RJS | D36: Sépia / Sépia Leste / Sépia_Eco | E36: Santos | F36: Mar | G36: 29849.84389
B37: 29 | C37: 7-ITP-3A-RJS | D37: Itapu / Itapu_Eco | E37: Santos | F37: Mar | G37: 29557.19344
B38: 30 | C38: 9-LL-2-RJS | D38: Tupi | E38: Santos | F38: Mar | G38: 29384.35636
B41: Tabela 12. Os 30 poços com maior produção de gás natural (Mm³/d)
B43: Nº | C43: Poço | D43: Campo | E43: Bacia | F43: Localização | G43: Gás natural (Mm³/d)
B44: 1 | C44: 3-BRSA-1322-RJS | D44: Anc_Mero / Mero | E44: Santos | F44: Mar | G44: 3038.480677
B45: 2 | C45: 3-BRSA-1255-RJS | D45: Anc_Mero / Mero | E45: Santos | F45: Mar | G45: 3035.196645
B46: 3 | C46: 7-MRO-17A-RJS | D46: Anc_Mero / Mero | E46: Santos | F46: Mar | G46: 2922.146677
B47: 4 | C47: 7-MRO-6DB-RJS | D47: Anc_Mero / Mero | E47: Santos | F47: Mar | G47: 2881.713548
B48: 5 | C48: 7-MRO-18D-RJS | D48: Anc_Mero / Mero | E48: Santos | F48: Mar | G48: 2858.902032
B49: 6 | C49: 7-MRO-7A-RJS | D49: Anc_Mero / Mero | E49: Santos | F49: Mar | G49: 2855.910774
B50: 7 | C50: 3-BRSA-1345-RJS | D50: Anc_Mero / Mero | E50: Santos | F50: Mar | G50: 2167.978226
B51: 8 | C51: 7-MRO-16D-RJS | D51: Anc_Mero / Mero | E51: Santos | F51: Mar | G51: 2137.529161
B52: 9 | C52: 9-LL-2-RJS | D52: Tupi | E52: Santos | F52: Mar | G52: 2117.542484
B53: 10 | C53: 7-BUZ-18-RJS | D53: Búzios / Búzios_Eco / Tambuatá | E53: Santos | F53: Mar | G53: 1967.475839
B54: 11 | C54: 7-MRO-27D-RJS | D54: Anc_Mero / Mero | E54: Santos | F54: Mar | G54: 1902.987935
B55: 12 | C55: 3-BRSA-1201-RJS | D55: Sépia / Sépia Leste / Sépia_Eco | E55: Santos | F55: Mar | G55: 1843.766226
B56: 13 | C56: 7-BUZ-24D-RJS | D56: Búzios / Búzios_Eco / Tambuatá | E56: Santos | F56: Mar | G56: 1833.933355
B57: 14 | C57: 1-BRSA-976-RJS | D57: Sépia / Sépia Leste / Sépia_Eco | E57: Santos | F57: Mar | G57: 1709.477581
B58: 15 | C58: 7-BUZ-12-RJS | D58: Búzios / Búzios_Eco / Tambuatá | E58: Santos | F58: Mar | G58: 1704.374032
B59: 16 | C59: 3-BRSA-1305A-RJS | D59: Anc_Mero / Mero | E59: Santos | F59: Mar | G59: 1682.551839
B60: 17 | C60: 7-ATP-6-RJS | D60: Atapu / Atapu_Eco / Anc_Norte_Atapu / Oeste De Atapu | E60: Santos | F60: Mar | G60: 1680.370871
B61: 18 | C61: 9-LL-20D-RJS | D61: Tupi | E61: Santos | F61: Mar | G61: 1660.492065
B62: 19 | C62: 7-SLL-3-RJS | D62: Anc_Tupi / Sul De Tupi / Tupi | E62: Santos | F62: Mar | G62: 1651.496226
B63: 20 | C63: 7-LL-36A-RJS | D63: Tupi | E63: Santos | F63: Mar | G63: 1642.856968
B64: 21 | C64: 9-ATP-1-RJS | D64: Atapu / Atapu_Eco / Anc_Norte_Atapu / Oeste De Atapu | E64: Santos | F64: Mar | G64: 1593.476871
B65: 22 | C65: 7-BUZ-25-RJS | D65: Búzios / Búzios_Eco / Tambuatá | E65: Santos | F65: Mar | G65: 1570.489355
B66: 23 | C66: 9-BUZ-4-RJS | D66: Búzios / Búzios_Eco / Tambuatá | E66: Santos | F66: Mar | G66: 1558.548387
B67: 24 | C67: 7-BUZ-30-RJS | D67: Búzios / Búzios_Eco / Tambuatá | E67: Santos | F67: Mar | G67: 1538.569032
B68: 25 | C68: 3-BRSA-944A-RJS | D68: Búzios / Búzios_Eco / Tambuatá | E68: Santos | F68: Mar | G68: 1537.513677
B69: 26 | C69: 4-BRSA-1226-RJS | D69: Peo-1Brsa1146Rjs_Iara_Entorno_Cco / Sul De Berbigão | E69: Santos | F69: Mar | G69: 1532.533871
B70: 27 | C70: 7-TUP-121DA-RJS | D70: Tupi | E70: Santos | F70: Mar | G70: 1510.827323
B71: 28 | C71: 9-BRSA-1254-RJS | D71: Sépia / Sépia Leste / Sépia_Eco | E71: Santos | F71: Mar | G71: 1416.580548
B72: 29 | C72: 7-LL-102D-RJS | D72: Anc_Tupi / Sul De Tupi / Tupi | E72: Santos | F72: Mar | G72: 1373.014161
B73: 30 | C73: 7-LL-51-RJS | D73: Tupi | E73: Santos | F73: Mar | G73: 1344.180806
B76: Tabela 13. Os 30 poços com maior produção total (boe/d)
B78: Nº | C78: Poço | D78: Campo | E78: Bacia | F78: Localização | G78: Produção (boe/d)
B79: 1 | C79: 3-BRSA-1322-RJS | D79: Anc_Mero / Mero | E79: Santos | F79: Mar | G79: 65135.3631
B80: 2 | C80: 3-BRSA-1255-RJS | D80: Anc_Mero / Mero | E80: Santos | F80: Mar | G80: 65079.0275
B81: 3 | C81: 7-MRO-17A-RJS | D81: Anc_Mero / Mero | E81: Santos | F81: Mar | G81: 61884.75074
B82: 4 | C82: 7-MRO-7A-RJS | D82: Anc_Mero / Mero | E82: Santos | F82: Mar | G82: 61514.01676
B83: 5 | C83: 7-MRO-18D-RJS | D83: Anc_Mero / Mero | E83: Santos | F83: Mar | G83: 61404.20357
B84: 6 | C84: 7-MRO-6DB-RJS | D84: Anc_Mero / Mero | E84: Santos | F84: Mar | G84: 61345.44721
B85: 7 | C85: 7-BUZ-18-RJS | D85: Búzios / Búzios_Eco / Tambuatá | E85: Santos | F85: Mar | G85: 58329.50685
B86: 8 | C86: 7-ATP-6-RJS | D86: Atapu / Atapu_Eco / Anc_Norte_Atapu / Oeste De Atapu | E86: Santos | F86: Mar | G86: 58234.07725
B87: 9 | C87: 9-BRSA-1254-RJS | D87: Sépia / Sépia Leste / Sépia_Eco | E87: Santos | F87: Mar | G87: 57016.02876
B88: 10 | C88: 9-ATP-1-RJS | D88: Atapu / Atapu_Eco / Anc_Norte_Atapu / Oeste De Atapu | E88: Santos | F88: Mar | G88: 56271.61453
B89: 11 | C89: 7-BUZ-12-RJS | D89: Búzios / Búzios_Eco / Tambuatá | E89: Santos | F89: Mar | G89: 54996.28068
B90: 12 | C90: 3-BRSA-944A-RJS | D90: Búzios / Búzios_Eco / Tambuatá | E90: Santos | F90: Mar | G90: 50571.11529
B91: 13 | C91: 7-BUZ-25-RJS | D91: Búzios / Búzios_Eco / Tambuatá | E91: Santos | F91: Mar | G91: 50331.29153
B92: 14 | C92: 7-BUZ-30-RJS | D92: Búzios / Búzios_Eco / Tambuatá | E92: Santos | F92: Mar | G92: 49510.73225
B93: 15 | C93: 3-BRSA-1201-RJS | D93: Sépia / Sépia Leste / Sépia_Eco | E93: Santos | F93: Mar | G93: 49231.42167
B94: 16 | C94: 7-BUZ-24D-RJS | D94: Búzios / Búzios_Eco / Tambuatá | E94: Santos | F94: Mar | G94: 47540.21269
B95: 17 | C95: 9-BUZ-4-RJS | D95: Búzios / Búzios_Eco / Tambuatá | E95: Santos | F95: Mar | G95: 47108.23422
B96: 18 | C96: 7-ITP-5D-RJS | D96: Itapu / Itapu_Eco | E96: Santos | F96: Mar | G96: 46769.22746
B97: 19 | C97: 3-BRSA-1345-RJS | D97: Anc_Mero / Mero | E97: Santos | F97: Mar | G97: 46566.95143
B98: 20 | C98: 7-MRO-16D-RJS | D98: Anc_Mero / Mero | E98: Santos | F98: Mar | G98: 44826.86982
B99: 21 | C99: 9-LL-2-RJS | D99: Tupi | E99: Santos | F99: Mar | G99: 42703.29625
B100: 22 | C100: 9-ITP-1-RJS | D100: Itapu / Itapu_Eco | E100: Santos | F100: Mar | G100: 42671.47245
B101: 23 | C101: 1-BRSA-976-RJS | D101: Sépia / Sépia Leste / Sépia_Eco | E101: Santos | F101: Mar | G101: 40602.13308
B102: 24 | C102: 7-MRO-27D-RJS | D102: Anc_Mero / Mero | E102: Santos | F102: Mar | G102: 40508.53056
B103: 25 | C103: 7-TUP-121DA-RJS | D103: Tupi | E103: Santos | F103: Mar | G103: 40477.54066
B104: 26 | C104: 7-BUZ-45DA-RJS | D104: Búzios / Búzios_Eco / Tambuatá | E104: Santos | F104: Mar | G104: 38966.2941
B105: 27 | C105: 7-BUZ-46D-RJS | D105: Búzios / Búzios_Eco / Tambuatá | E105: Santos | F105: Mar | G105: 37961.20681
B106: 28 | C106: 9-LL-20D-RJS | D106: Tupi | E106: Santos | F106: Mar | G106: 37642.41246
B107: 29 | C107: 7-SEP-6-RJS | D107: Sépia / Sépia Leste / Sépia_Eco | E107: Santos | F107: Mar | G107: 36969.58093
B108: 30 | C108: 7-OATP-1-RJS | D108: Atapu / Atapu_Eco / Anc_Norte_Atapu / Oeste De Atapu | E108: Santos | F108: Mar | G108: 36770.3019
B110: Tabela 14. Os 30 poços terrestres com maior produção de petróleo (bbl/d)
B112: Nº | C112: Poço | D112: Campo | E112: Bacia | F112: Localização | G112: Petróleo (bbl/d)
B113: 1 | C113: 1-BRSA-769-AM | D113: Arara Azul | E113: Solimões | F113: Terra | G113: 1336.438133
B114: 2 | C114: 7-TIE-11DP-BA | D114: Tiê | E114: Recôncavo | F114: Terra | G114: 1167.513924
B115: 3 | C115: 7-TIE-2DB-BA | D115: Tiê | E115: Recôncavo | F115: Terra | G115: 562.2564637
B116: 4 | C116: 7-CNC-9-ES | D116: Cancã | E116: Espírito Santo | F116: Terra | G116: 546.4469248
B117: 5 | C117: 3-ORGM-2D-AL | D117: Pilar | E117: Alagoas | F117: Terra | G117: 532.4283586
B118: 6 | C118: 7-LUC-42HP-AM | D118: Leste Do Urucu | E118: Solimões | F118: Terra | G118: 510.1875904
B119: 7 | C119: 7-TIE-1D-BA | D119: Tiê | E119: Recôncavo | F119: Terra | G119: 474.9928571
B120: 8 | C120: 7-TIE-12D-BA | D120: Tiê | E120: Recôncavo | F120: Terra | G120: 445.8501384
B121: 9 | C121: 8-TIE-9D-BA | D121: Tiê | E121: Recôncavo | F121: Terra | G121: 430.0982223
B122: 10 | C122: 3-BRSA-1218-AM | D122: Sudoeste Urucu | E122: Solimões | F122: Terra | G122: 422.4492046
B123: 11 | C123: 7-LUC-50HP-AM | D123: Leste Do Urucu | E123: Solimões | F123: Terra | G123: 383.6536566
B124: 12 | C124: 7-RB-2-SE | D124: Rabo Branco | E124: Sergipe | F124: Terra | G124: 371.195369
B125: 13 | C125: 7-MA-34D-RN | D125: Macau | E125: Potiguar | F125: Terra | G125: 336.6083125
B126: 14 | C126: 4-SMT-3-AM | D126: Araracanga | E126: Solimões | F126: Terra | G126: 312.9231199
B127: 15 | C127: 9-RUC-97DP-AM | D127: Rio Urucu | E127: Solimões | F127: Terra | G127: 311.8110409
B128: 16 | C128: 7-LUC-88HP-AM | D128: Leste Do Urucu | E128: Solimões | F128: Terra | G128: 303.4748108
B129: 17 | C129: 9-RUC-75D-AM | D129: Rio Urucu | E129: Solimões | F129: Terra | G129: 303.1187264
B130: 18 | C130: 7-LUC-63HP-AM | D130: Leste Do Urucu | E130: Solimões | F130: Terra | G130: 287.3749262
B131: 19 | C131: 7-LUC-71HP-AM | D131: Leste Do Urucu | E131: Solimões | F131: Terra | G131: 281.450331
B132: 20 | C132: 7-LUC-41HP-AM | D132: Leste Do Urucu | E132: Solimões | F132: Terra | G132: 262.9584925
B133: 21 | C133: 7-LUC-73HP-AM | D133: Leste Do Urucu | E133: Solimões | F133: Terra | G133: 251.8652966
B134: 22 | C134: 1-SMT-2-AM | D134: Araracanga | E134: Solimões | F134: Terra | G134: 234.6851878
B135: 23 | C135: 7-LUC-25-AM | D135: Leste Do Urucu | E135: Solimões | F135: Terra | G135: 223.7530922
B136: 24 | C136: 7-LUC-24DP-AM | D136: Leste Do Urucu | E136: Solimões | F136: Terra | G136: 218.7547223
B137: 25 | C137: 4-LUC-3-AM | D137: Leste Do Urucu | E137: Solimões | F137: Terra | G137: 216.9643583
B138: 26 | C138: 7-LUC-29H-AM | D138: Leste Do Urucu | E138: Solimões | F138: Terra | G138: 215.0327779
B139: 27 | C139: 7-RUC-59DP-AM | D139: Rio Urucu | E139: Solimões | F139: Terra | G139: 213.8245257
B140: 28 | C140: 7-JNDS-3DP-BA | D140: Jandaia / Jandaia Sul / Tangará | E140: Recôncavo | F140: Terra | G140: 204.679142
B141: 29 | C141: 7-LUC-57HP-AM | D141: Leste Do Urucu | E141: Solimões | F141: Terra | G141: 203.643961
B142: 30 | C142: 7-LUC-17-AM | D142: Leste Do Urucu | E142: Solimões | F142: Terra | G142: 192.5065336
B145: Tabela 15. Os 30 poços terrestres com maior produção de gás natural (Mm³/d)
B147: Nº | C147: Poço | D147: Campo | E147: Bacia | F147: Localização | G147: Gás natural (Mm³/d)
B148: 1 | C148: 7-LUC-42HP-AM | D148: Leste Do Urucu | E148: Solimões | F148: Terra | G148: 590.3468065
B149: 2 | C149: 7-LUC-71HP-AM | D149: Leste Do Urucu | E149: Solimões | F149: Terra | G149: 472.5475484
B150: 3 | C150: 9-RUC-75D-AM | D150: Rio Urucu | E150: Solimões | F150: Terra | G150: 460.2599677
B151: 4 | C151: 9-RUC-97DP-AM | D151: Rio Urucu | E151: Solimões | F151: Terra | G151: 431.7554516
B152: 5 | C152: 1-BRSA-769-AM | D152: Arara Azul | E152: Solimões | F152: Terra | G152: 421.4590645
B153: 6 | C153: 4-SMT-3-AM | D153: Araracanga | E153: Solimões | F153: Terra | G153: 420.7370645
B154: 7 | C154: 7-LUC-41HP-AM | D154: Leste Do Urucu | E154: Solimões | F154: Terra | G154: 396.4240645
B155: 8 | C155: 7-LUC-88HP-AM | D155: Leste Do Urucu | E155: Solimões | F155: Terra | G155: 382.9046129
B156: 9 | C156: 1-SMT-2-AM | D156: Araracanga | E156: Solimões | F156: Terra | G156: 370.2836774
B157: 10 | C157: 7-AZU-3-AM | D157: Azulão | E157: Amazonas | F157: Terra | G157: 357.0133226
B158: 11 | C158: 7-RUC-58HP-AM | D158: Rio Urucu | E158: Solimões | F158: Terra | G158: 356.7527742
B159: 12 | C159: 7-LUC-73HP-AM | D159: Leste Do Urucu | E159: Solimões | F159: Terra | G159: 337.7107097
B160: 13 | C160: 7-RUC-62HP-AM | D160: Rio Urucu | E160: Solimões | F160: Terra | G160: 337.5621935
B161: 14 | C161: 7-LUC-57HP-AM | D161: Leste Do Urucu | E161: Solimões | F161: Terra | G161: 328.3082581
B162: 15 | C162: 7-RUC-96HP-AM | D162: Rio Urucu | E162: Solimões | F162: Terra | G162: 326.0712903
B163: 16 | C163: 7-GVP-7D-MA | D163: Gavião Preto | E163: Parnaíba | F163: Terra | G163: 307.1343871
B164: 17 | C164: 7-RUC-92DP-AM | D164: Rio Urucu | E164: Solimões | F164: Terra | G164: 306.4689032
B165: 18 | C165: 7-LUC-17-AM | D165: Leste Do Urucu | E165: Solimões | F165: Terra | G165: 295.0697097
B166: 19 | C166: 7-RUC-83H-AM | D166: Rio Urucu | E166: Solimões | F166: Terra | G166: 290.591871
B167: 20 | C167: 7-LUC-84HP-AM | D167: Leste Do Urucu | E167: Solimões | F167: Terra | G167: 282.628129
B168: 21 | C168: 9-RUC-104DP-AM | D168: Rio Urucu | E168: Solimões | F168: Terra | G168: 279.9549677
B169: 22 | C169: 7-LUC-80DP-AM | D169: Leste Do Urucu | E169: Solimões | F169: Terra | G169: 272.0317097
B170: 23 | C170: 7-LUC-50HP-AM | D170: Leste Do Urucu | E170: Solimões | F170: Terra | G170: 270.5444839
B171: 24 | C171: 7-RUC-59DP-AM | D171: Rio Urucu | E171: Solimões | F171: Terra | G171: 264.4543226
B172: 25 | C172: 4-RUC-10-AM | D172: Rio Urucu | E172: Solimões | F172: Terra | G172: 259.6203226
B173: 26 | C173: 7-LUC-63HP-AM | D173: Leste Do Urucu | E173: Solimões | F173: Terra | G173: 253.8554516
B174: 27 | C174: 7-LUC-29H-AM | D174: Leste Do Urucu | E174: Solimões | F174: Terra | G174: 249.1188387
B175: 28 | C175: 7-LUC-22DP-AM | D175: Leste Do Urucu | E175: Solimões | F175: Terra | G175: 247.5553548
B176: 29 | C176: 3-RUC-8-AM | D176: Rio Urucu | E176: Solimões | F176: Terra | G176: 246.3666774
B177: 30 | C177: 7-LUC-59HP-AM | D177: Leste Do Urucu | E177: Solimões | F177: Terra | G177: 244.4957419
B180: Tabela 16. As 30 instalações com maior produção de petróleo (bbl/d)
B182: Nº | C182: Instalação | D182: Petróleo (bbl/d) | E182: Nº poços produtores | F182: Campos produtores
B183: 1 | C183: FPSO Guanabara | D183: 182147.0722 | E183: 6 | F183: Anc_Mero / Mero
B184: 2 | C184: FPSO Sepetiba | D184: 172245.2962 | E184: 5 | F184: Anc_Mero / Mero
B185: 3 | C185: Petrobras 77 | D185: 159116.6943 | E185: 5 | F185: Búzios / Búzios_Eco / Tambuatá
B186: 4 | C186: Petrobras 71 | D186: 158649.234 | E186: 5 | F186: Itapu / Itapu_Eco
B187: 5 | C187: FPSO Almirante Barroso | D187: 154396.5482 | E187: 5 | F187: Búzios / Búzios_Eco / Tambuatá
B188: 6 | C188: Petrobras 70 | D188: 152599.572 | E188: 6 | F188: Atapu / Atapu_Eco / Anc_Norte_Atapu / Oeste De Atapu
B189: 7 | C189: Petrobras 76 | D189: 147908.1616 | E189: 5 | F189: Búzios / Búzios_Eco / Tambuatá
B190: 8 | C190: FPSO Carioca (Mv-30) | D190: 146824.6253 | E190: 4 | F190: Sépia / Sépia Leste / Sépia_Eco
B191: 9 | C191: Petrobras 68 | D191: 133068.0987 | E191: 10 | F191: Berbigão / Sul De Berbigão / Sururu
B192: 10 | C192: Petrobras 67 (P-67) | D192: 130794.2861 | E192: 8 | F192: Anc_Tupi / Sul De Tupi / Tupi
B193: 11 | C193: FPSO Cidade de Maricá | D193: 127632.0643 | E193: 7 | F193: Anc_Tupi / Sul De Tupi / Tupi
B194: 12 | C194: Petrobras 69 | D194: 114723.1467 | E194: 7 | F194: Anc_Tupi / Sul De Tupi / Tupi
B195: 13 | C195: FPSO Cidade de Itaguaí | D195: 107608.2713 | E195: 7 | F195: Tupi
B196: 14 | C196: FPSO Cidade de Saquarema | D196: 104397.3499 | E196: 8 | F196: Anc_Tupi / Sul De Tupi / Tupi
B197: 15 | C197: FPSO Cidade de Paraty | D197: 98963.31562 | E197: 6 | F197: Anc_Tupi / Sul De Tupi / Tupi
B198: 16 | C198: Petrobras 66 (P-66) | D198: 92689.00858 | E198: 8 | F198: Anc_Tupi / Sul De Tupi / Tupi
B199: 17 | C199: FPSO Cidade de Mangaratiba | D199: 87795.44956 | E199: 7 | F199: Tupi
B200: 18 | C200: FPSO Cidade de Ilha Bela | D200: 69378.10878 | E200: 7 | F200: Nordeste De Sapinhoá / Noroeste De Sapinhoá / Sapinhoá / Sudoeste De Sapinhoá
B201: 19 | C201: Petrobras 74 (P-74) | D201: 68191.59375 | E201: 5 | F201: Búzios / Búzios_Eco / Tambuatá
B202: 20 | C202: FPSO Cidade de Campos dos Goytacazes | D202: 55469.54567 | E202: 12 | F202: Espadarte / Tartaruga Verde / Tartaruga Verde Sudoeste
B203: 21 | C203: FPSO Pioneiro de Libra | D203: 46023.89695 | E203: 1 | F203: Anc_Mero / Mero
B204: 22 | C204: FPSO Cidade de Caraguatatuba | D204: 45893.32678 | E204: 3 | F204: Lapa
B205: 23 | C205: Petrobras 52 | D205: 42416.13153 | E205: 15 | F205: Roncador
B206: 24 | C206: Peregrino C | D206: 41848.83916 | E206: 7 | F206: Peregrino / Pitangola
B207: 25 | C207: Peregrino A | D207: 41787.25502 | E207: 15 | F207: Peregrino
B208: 26 | C208: Petrobras 40 | D208: 41306.53965 | E208: 12 | F208: Marlim / Marlim Sul
B209: 27 | C209: FPSO Frade | D209: 39194.57566 | E209: 11 | F209: Frade
B210: 28 | C210: Petrobras 58 | D210: 35586.14108 | E210: 14 | F210: Jubarte
B211: 29 | C211: FPSO Marechal Duque de Caxias | D211: 32930.78031 | E211: 1 | F211: Anc_Mero / Mero
B212: 30 | C212: Polo Arara | D212: 5852.300758 | E212: 36 | F212: Arara Azul / Araracanga / Rio Urucu / Sudoeste Urucu
B215: Tabela 17. As 30 instalações com maior produção de gás natural (Mm³/d)
B217: Nº | C217: Instalação | D217: Gás natural (Mm³/d) | E217: Nº poços produtores | F217: Campos produtores
B218: 1 | C218: FPSO Guanabara | D218: 12021.50271 | E218: 6 | F218: Anc_Mero / Mero
B219: 2 | C219: FPSO Sepetiba | D219: 11504.11765 | E219: 5 | F219: Anc_Mero / Mero
B220: 3 | C220: Polo Arara | D220: 7271.486806 | E220: 36 | F220: Arara Azul / Araracanga / Rio Urucu / Sudoeste Urucu
B221: 4 | C221: FPSO Cidade de Itaguaí | D221: 7064.859742 | E221: 7 | F221: Tupi
B222: 5 | C222: Petrobras 76 | D222: 6622.978419 | E222: 5 | F222: Búzios / Búzios_Eco / Tambuatá
... 47 more rows
